bitfinex/quotes_SOLUSD_20251204
["timestamp","ask_amount","ask_price","bid_price","bid_amount"]
[1764870532050,12.79185404,141.42,141.39,7.07244956]
[1764870532245,7.06963591,141.45,141.39,24.75403948]
[1764870532460,12.09185404,141.44,141.4,0.69]
[1764870532661,0.7,141.44,141.4,0.69]
[1764870532859,12.79185404,141.44,141.4,0.69]
[1764870533646,12.79185404,141.44,141.41,7.07163566]
[1764870534367,12.09185404,141.44,141.41,7.76163566]
[1764870534563,12.09185404,141.43,141.38,8.53]
[1764870534858,12.09185404,141.42,141.39,0.69]
[1764870535451,12.09185404,141.41,141.39,7.07243448]
[1764870535747,12.09185404,141.4,141.38,7.07313622]
[1764870536664,12.09185404,141.41,141.38,7.76313622]
[1764870536855,12.79185404,141.41,141.38,7.07313622]
[1764870537765,12.09185404,141.41,141.38,7.76313622]
[1764870538157,12.09185404,141.42,141.38,7.76313622]
[1764870538363,12.09185404,141.42,141.38,25.44597679]
[1764870538567,12.79185404,141.42,141.38,25.44597679]
[1764870538764,12.09185404,141.43,141.39,0.69]
[1764870539270,7.76993935,141.45,141.39,0.69]
[1764870539474,12.09185404,141.43,141.39,0.69]
[1764870539672,12.09185404,141.43,141.4,7.07213578]
[1764870539969,12.09185404,141.41,141.39,7.07256493]
[1764870540167,12.09185404,141.4,141.39,7.07256493]
[1764870540349,12.09185404,141.4,141.36,7.07393443]
[1764870540547,12.09185404,141.37,141.34,7.07498761]
[1764870540750,12.09185404,141.35,141.34,7.07498761]
[1764870541065,12.09185404,141.36,141.34,7.07498761]
[1764870541261,12.09185404,141.37,141.34,7.07498761]
[1764870542264,8.54,141.38,141.34,7.07498761]
[1764870542457,12.09185404,141.37,141.34,24.76283252]
[1764870543072,12.09185404,141.37,141.34,24.95283252]
[1764870545577,12.09185404,141.36,141.34,24.95283252]
[1764870545751,12.09185404,141.36,141.34,6.57498761]
[1764870545952,12.09185404,141.35,141.34,6.57498761]
[1764870546556,25.11880892,141.42,141.34,6.57498761]
[1764870546557,5.82868164,141.49,141.38,8.80994492]
[1764870546764,0.7,141.45,141.41,16.308864]
[1764870546977,12.09185404,141.43,141.38,0.70731362]
[1764870547276,12.09185404,141.4,141.37,5.93149642]
[1764870547571,12.09185404,141.4,141.37,16.308864]
[1764870547773,12.79185404,141.39,141.36,23.38290934]
[1764870547989,12.09185404,141.39,141.37,7.07357003]
[1764870548680,12.09185404,141.39,141.36,16.998864]
[1764870548852,0.7,141.39,141.34,0.69]
[1764870549047,0.7,141.39,141.35,12.78185404]
[1764870549252,12.79185404,141.41,141.36,12.09185404]
[1764870549453,7.86,141.4,141.36,12.09185404]
[1764870549775,8.56,141.4,141.37,7.07342816]
[1764870549951,20.65185404,141.42,141.37,19.8552822]
[1764870550268,0.7,141.41,141.37,19.1652822]
[1764870550472,0.7,141.41,141.37,14.01160387]
[1764870551387,0.7,141.41,141.37,14.70160387]
[1764870551681,14.93130436,141.42,141.37,14.70160387]
[1764870551859,22.56948007,141.42,141.37,14.70160387]
[1764870552067,0.7,141.41,141.37,14.70160387]
[1764870552267,7.86,141.42,141.38,7.62817571]
[1764870552468,7.86,141.43,141.39,6.93817571]
[1764870552662,7.86,141.43,141.39,7.62817571]
[1764870552663,8.56,141.43,141.39,7.62817571]
[1764870553150,0.67,141.42,141.38,6.93817571]
[1764870553356,0.67,141.42,141.37,7.63817571]
[1764870553854,0.67,141.42,141.37,6.93817571]
[1764870553855,7.60817571,141.42,141.37,6.93817571]
[1764870554057,7.60817571,141.42,141.37,7.63817571]
[1764870554370,0.67,141.41,141.37,7.63817571]
[1764870554676,0.67,141.41,141.36,6.93817571]
[1764870554677,14.67996964,141.41,141.36,6.93817571]
[1764870554881,0.67,141.4,141.36,6.93817571]
[1764870555089,0.67,141.4,141.36,14.71226028]
[1764870555667,15.46817571,141.4,141.35,14.01265792]
[1764870556088,0.67,141.39,141.35,14.71265792]
[1764870556490,0.67,141.39,141.36,7.07404566]
[1764870557769,7.74268687,141.39,141.35,14.7126618]
[1764870557978,7.74268687,141.39,141.35,14.0126618]
[1764870558190,0.67,141.38,141.35,7.07448609]
[1764870558486,14.79817571,141.37,141.32,20.64555222]
[1764870558701,21.8720603,141.37,141.32,14.7140558]
[1764870558890,0.67,141.36,141.32,14.7140558]
[1764870559866,0.67,141.36,141.33,14.01367146]
[1764870560075,0.67,141.36,141.34,6.93817571]
[1764870561110,14.93388459,141.37,141.34,6.93817571]
[1764870561385,15.60388459,141.37,141.33,14.01367146]
[1764870561790,14.93388459,141.37,141.33,14.01367146]
[1764870561963,16.308864,141.41,141.34,0.7]
[1764870562168,0.67,141.4,141.38,6.93817571]
[1764870562380,0.67,141.4,141.37,6.93817571]
[1764870562883,7.86,141.41,141.39,6.93817571]
[1764870563081,7.86,141.41,141.39,14.01062419]
[1764870564194,7.86,141.41,141.4,6.93817571]
[1764870564390,15.60029792,141.44,141.4,6.93817571]
[1764870564600,0.67,141.43,141.4,6.93817571]
[1764870565097,7.86,141.44,141.41,7.07163566]
[1764870565281,7.86,141.44,141.4,6.93817571]
[1764870565483,0.67,141.43,141.4,6.93817571]
[1764870566595,0.67,141.43,141.4,14.01012343]
[1764870568403,7.86,141.44,141.42,6.93817571]
[1764870568574,30.98606915,141.47,141.42,6.93817571]
[1764870568781,0.67,141.49,141.46,6.93817571]
[1764870569007,7.06764358,141.49,141.45,7.06957724]
[1764870569296,0.67,141.48,141.45,14.00775295]
[1764870571416,0.67,141.48,141.45,6.93817571]
[1764870571596,7.06764358,141.49,141.45,7.63817571]
[1764870572002,0.87,141.52,141.48,6.93817571]
[1764870572208,8.73,141.52,141.5,6.93817571]
[1764870572401,0.2,141.52,141.51,6.93817571]
[1764870573308,0.2,141.52,141.49,7.06763728]
[1764870573503,0.2,141.52,141.49,14.00581299]
[1764870573704,0.2,141.52,141.49,14.70581299]
[1764870576202,0.67,141.51,141.48,6.93817571]
[1764870576519,0.67,141.51,141.47,14.00662146]
[1764870576734,0.2,141.52,141.5,6.93817571]
[1764870576907,0.2,141.52,141.51,6.93817571]
[1764870578509,0.2,141.52,141.51,14.70481411]
[1764870580510,0.2,141.52,141.51,22.54481411]
[1764870582334,0.2,141.52,141.51,31.35475903]
[1764870583718,0.2,141.52,141.51,14.70481411]
[1764870583923,0.89,141.52,141.49,7.0673441]
[1764870584129,0.2,141.52,141.49,14.70551981]
[1764870584324,7.95617736,141.52,141.48,14.00614378]
[1764870584531,7.95617736,141.52,141.48,14.70614378]
[1764870584932,0.2,141.52,141.49,14.00576548]
[1764870585150,0.2,141.52,141.49,14.70576548]
[1764870585715,0.2,141.52,141.5,7.63817571]
[1764870586047,0.2,141.52,141.51,6.93817571]
[1764870586229,0.2,141.52,141.51,7.7666384]
[1764870586436,0.2,141.52,141.51,14.70481411]
[1764870589325,0.2,141.52,141.51,23.51475903]
[1764870592229,0.2,141.55,141.54,16.308864]
[1764870592428,0.2,141.55,141.54,23.94703971]
[1764870593248,0.2,141.55,141.54,32.75698463]
[1764870593553,0.2,141.55,141.54,39.82212522]
[1764870594131,0.2,141.55,141.54,24.07400459]
[1764870594346,0.2,141.55,141.54,31.0121803]
[1764870594539,0.2,141.55,141.54,39.82212522]
[1764870596143,0.2,141.55,141.54,47.66212522]
[1764870599747,0.2,141.55,141.54,23.37400459]
[1764870600091,0.2,141.55,141.54,30.3121803]
[1764870601077,0.2,141.55,141.54,39.82212522]
[1764870601582,0.2,141.56,141.54,39.82212522]
[1764870601763,0.2,141.56,141.55,24.28812063]
[1764870602089,1e-08,141.56,141.55,24.28812063]
[1764870602764,1e-08,141.56,141.55,31.35276209]
[1764870604012,1e-08,141.56,141.55,23.37350546]
[1764870604313,1e-08,141.56,141.55,30.31168117]
[1764870604511,1e-08,141.56,141.54,7.84]
[1764870604512,0.69000001,141.56,141.54,14.00314829]
[1764870604679,0.69000001,141.56,141.55,7.06464146]
[1764870604881,0.69000001,141.56,141.53,14.00377637]
[1764870605081,7.62817572,141.56,141.51,17.6661503]
[1764870605319,7.62817572,141.56,141.51,24.60432601]
[1764870605488,0.69,141.55,141.52,7.06579863]
[1764870605886,7.62817571,141.55,141.52,7.06579863]
[1764870606425,0.69,141.54,141.52,7.06579863]
[1764870606624,7.62817571,141.54,141.51,7.06662086]
[1764870606787,0.69,141.54,141.51,7.06662086]
[1764870606992,0.69,141.53,141.51,7.06662086]
[1764870608712,0.69,141.53,141.47,25.51099351]
[1764870608713,6.93817571,141.52,141.47,25.51099351]
[1764870608922,6.93817571,141.51,141.48,7.06795593]
[1764870609297,0.69,141.5,141.48,7.06795593]
[1764870610092,7.62817571,141.5,141.48,7.06795593]
[1764870610293,7.62817571,141.5,141.47,7.06863646]
[1764870610600,7.06648551,141.52,141.47,19.83342961]
[1764870610601,12.06479315,141.52,141.47,19.83342961]
[1764870610799,0.69,141.52,141.49,12.06479315]
[1764870611798,0.69,141.52,141.5,7.0671378]
[1764870612003,19.13005153,141.54,141.5,19.13193095]
[1764870612004,0.69,141.54,141.5,19.13193095]
[1764870612205,7.84000001,141.56,141.5,19.13193095]
[1764870612206,0.69,141.53,141.5,19.13193095]
[1764870612919,0.69,141.53,141.51,12.06479315]
[1764870613326,0.69,141.53,141.51,19.13108511]
[1764870613513,0.71,141.55,141.51,19.13108511]
[1764870614102,12.77479315,141.55,141.51,7.06629196]
[1764870614332,12.77479315,141.55,141.5,19.13175576]
[1764870614633,12.06479315,141.53,141.49,7.06744606]
[1764870615138,0.71,141.52,141.48,19.13272387]
[1764870615307,12.06479315,141.49,141.44,12.06479315]
[1764870615628,25.44196905,141.52,141.43,29.74085791]
[1764870615807,12.06479315,141.48,141.43,29.74085791]
[1764870616002,12.06479315,141.49,141.44,12.06479315]
[1764870616205,0.71,141.5,141.46,12.06479315]
[1764870617614,0.71,141.5,141.47,7.06860731]
[1764870619141,12.77479315,141.5,141.47,7.06860731]
[1764870619314,0.71,141.5,141.47,7.06860731]
[1764870619515,12.77479315,141.5,141.47,7.06860731]
[1764870621124,12.77479315,141.5,141.46,18.37218541]
[1764870621125,12.06479315,141.5,141.46,24.74132156]
[1764870623349,12.06479315,141.5,141.46,29.73697856]
[1764870624234,12.06479315,141.51,141.46,29.73697856]
[1764870624438,12.06479315,141.51,141.46,36.80611471]
[1764870625340,7.0666214,141.52,141.46,36.80611471]
[1764870625532,12.06479315,141.51,141.46,36.80611471]
[1764870625942,12.06479315,141.51,141.46,24.74132156]
[1764870626109,12.06479315,141.49,141.46,7.06913615]
[1764870626441,12.06479315,141.47,141.45,7.0694547]
[1764870626818,0.71,141.47,141.45,7.0694547]
[1764870627556,12.77479315,141.47,141.44,7.06997661]
[1764870627834,12.06479315,141.46,141.44,7.06986048]
[1764870628013,12.77479315,141.48,141.44,0.7]
[1764870628210,12.77479315,141.48,141.43,12.06479315]
[1764870628526,0.71,141.47,141.43,12.76479315]
[1764870628931,12.77479315,141.47,141.43,37.51201792]
[1764870629838,12.06479315,141.47,141.43,25.44722477]
[1764870630041,12.77479315,141.47,141.43,25.44722477]
[1764870630236,12.77479315,141.47,141.43,37.51201792]
[1764870630435,0.71,141.47,141.43,37.51201792]
[1764870631753,20.59479315,141.49,141.44,12.76479315]
[1764870632059,0.71,141.48,141.44,12.76479315]
[1764870632556,0.71,141.48,141.43,24.74722477]
[1764870632557,12.77479315,141.48,141.43,36.81201792]
[1764870632731,12.77479315,141.48,141.43,37.51201792]
[1764870633030,0.71,141.47,141.43,37.51201792]
[1764870634254,0.71,141.47,141.43,36.81201792]
[1764870634555,14.88765352,141.49,141.45,12.06479315]
[1764870634556,8.53,141.49,141.45,12.06479315]
[1764870634948,8.53,141.49,141.46,0.7]
[1764870635759,8.53,141.49,141.47,7.06863646]
[1764870637458,12.77479315,141.51,141.47,19.83342961]
[1764870637961,12.77479315,141.5,141.47,7.06863646]
[1764870638145,12.06479315,141.49,141.44,30.43961735]
[1764870638348,12.06479315,141.48,141.45,7.06931837]
[1764870638538,12.77479315,141.48,141.45,7.06931837]
[1764870638744,0.71,141.47,141.45,7.06931837]
[1764870638946,12.77479315,141.47,141.44,7.07008067]
[1764870639366,0.71,141.46,141.44,7.07008067]
[1764870639560,12.77479315,141.46,141.43,7.07051663]
[1764870639747,0.71,141.46,141.42,7.07113562]
[1764870639951,0.71,141.45,141.42,19.83592877]
[1764870640150,0.71,141.45,141.42,37.51376783]
[1764870640360,12.77479315,141.46,141.42,37.51376783]
[1764870640561,0.71,141.45,141.42,37.51376783]
[1764870641069,0.71,141.45,141.42,19.83592877]
[1764870641267,0.71,141.45,141.41,7.07143329]
[1764870641268,12.06479315,141.43,141.41,7.07143329]
[1764870641436,12.06479315,141.43,141.4,7.07200945]
[1764870641950,12.77479315,141.43,141.4,7.07200945]
[1764870642139,0.71,141.43,141.4,7.77200945]
[1764870645379,12.77479315,141.43,141.4,7.07200945]
[1764870646064,0.71,141.43,141.4,7.07200945]
[1764870646867,25.49284037,141.46,141.4,7.07200945]
[1764870646868,7.06981358,141.45,141.4,12.74479315]
[1764870647169,7.82,141.46,141.43,12.06479315]
[1764870647668,7.82,141.46,141.39,24.75357404]
[1764870647669,12.06479315,141.44,141.39,24.75357404]
[1764870647850,12.06479315,141.44,141.4,20.58479315]
[1764870648044,12.75479315,141.44,141.4,19.90479315]
[1764870648357,0.69,141.44,141.4,20.58479315]
[1764870648741,0.69,141.44,141.41,7.07163566]
[1764870649653,8.51,141.46,141.42,12.74479315]
[1764870650053,12.75479315,141.48,141.43,12.74479315]
[1764870650451,0.69,141.47,141.43,12.74479315]
[1764870650655,0.69,141.47,141.45,7.06963591]
[1764870650866,0.69,141.48,141.45,7.06963591]
[1764870651858,0.69,141.48,141.45,19.81442906]
[1764870652040,0.69,141.48,141.45,7.74963591]
[1764870652244,0.69,141.48,141.44,19.13492889]
[1764870652245,12.75479315,141.48,141.44,19.13492889]
[1764870652440,12.75479315,141.48,141.44,19.81492889]
[1764870652853,19.82309827,141.48,141.44,19.81492889]
[1764870653052,0.69,141.47,141.44,19.81492889]
[1764870654869,0.69,141.47,141.44,7.07013574]
[1764870655248,0.69,141.48,141.44,36.81026825]
[1764870655558,0.69,141.48,141.45,0.68]
[1764870655758,0.69,141.48,141.44,37.49026825]
[1764870656256,0.69,141.48,141.45,12.06479315]
[1764870656465,7.84,141.49,141.46,7.06913615]
[1764870656666,8.53,141.49,141.46,7.06913615]
[1764870657065,20.14625892,141.49,141.45,7.74940765]
[1764870657467,7.84,141.49,141.46,0.68]
[1764870658261,19.45620975,141.49,141.46,0.68]
[1764870658470,20.14620975,141.49,141.46,0.68]
[1764870660186,20.14620975,141.49,141.45,7.06940765]
[1764870660480,19.45620975,141.49,141.46,0.68]
[1764870660686,20.14620975,141.49,141.46,0.68]
[1764870661387,12.38845333,141.49,141.46,0.68]
[1764870661583,7.06676716,141.51,141.47,4.54845333]
[1764870661766,5.23845333,141.54,141.49,4.54845333]
[1764870661964,0.69,141.54,141.5,5.22845333]
[1764870662591,12.30380486,141.54,141.5,12.295489]
[1764870663089,12.30380486,141.54,141.5,11.615489]
[1764870663275,12.30380486,141.54,141.51,0.68]
[1764870663466,7.82,141.55,141.51,5.22845333]
[1764870663672,1e-08,141.56,141.52,4.54845333]
[1764870663971,1e-08,141.56,141.52,5.22845333]
[1764870664177,1e-08,141.56,141.53,0.68]
[1764870664687,1e-08,141.56,141.52,11.61443925]
[1764870664688,12.30261426,141.56,141.52,11.61443925]
[1764870664875,4.54845333,141.53,141.5,7.7467802]
[1764870665077,4.54845333,141.54,141.5,7.7467802]
[1764870665270,4.54845333,141.53,141.47,5.93149642]
[1764870665478,4.54845333,141.49,141.45,7.06944792]
[1764870665977,5.23845333,141.49,141.45,7.74944792]
[1764870666288,4.54845333,141.54,141.48,4.54845333]
[1764870666289,21.54731733,141.53,141.48,4.54845333]
[1764870666490,4.54845333,141.52,141.47,13.35839825]
[1764870666792,4.54845333,141.51,141.48,0.68]
[1764870667092,4.54845333,141.49,141.45,7.74942163]
[1764870667392,4.54845333,141.48,141.45,7.74942163]
[1764870667777,4.54845333,141.47,141.43,0.68]
[1764870667979,4.54845333,141.47,141.43,7.07060644]
[1764870667980,4.54845333,141.46,141.43,7.07060644]
[1764870668183,4.54845333,141.47,141.44,0.68]
[1764870668369,5.23845333,141.47,141.43,7.07060644]
[1764870668569,5.23845333,141.47,141.43,7.75060644]
[1764870668865,4.54845333,141.47,141.43,7.07060644]
[1764870669075,4.54845333,141.48,141.44,5.22845333]
[1764870669381,4.54845333,141.48,141.44,0.68]
[1764870669689,4.54845333,141.48,141.43,7.07060644]
[1764870669690,5.23845333,141.47,141.43,7.07060644]
[1764870669878,5.23845333,141.48,141.44,0.68]
[1764870670383,4.54845333,141.47,141.44,0.68]
[1764870670782,5.23845333,141.46,141.43,7.07051703]
[1764870671164,5.23845333,141.46,141.43,7.75051703]
[1764870671674,5.23845333,141.49,141.44,12.29812125]
[1764870671882,13.05845333,141.49,141.44,12.29812125]
[1764870672194,5.23845333,141.48,141.44,12.29812125]
[1764870672389,2.91131585,141.48,141.45,0.68]
[1764870672593,11.42131585,141.49,141.45,0.68]
[1764870672895,11.42131585,141.49,141.46,7.06913615]
[1764870672896,7.82,141.49,141.46,7.06913615]
[1764870673297,7.82,141.49,141.46,7.72913615]
[1764870673493,8.48,141.49,141.46,7.72913615]
[1764870673790,7.82,141.49,141.47,0.66]
[1764870674668,18.45901948,141.49,141.45,7.06946086]
[1764870674867,18.45901948,141.49,141.45,7.72946086]
[1764870675291,3.57131585,141.48,141.44,7.06996487]
[1764870675486,2.91131585,141.47,141.43,7.07043112]
[1764870675694,3.57131585,141.47,141.43,7.73043112]
[1764870676075,2.91131585,141.48,141.44,7.73013139]
[1764870676274,7.82,141.49,141.45,2.91131585]
[1764870676478,10.63745491,141.52,141.47,2.91131585]
[1764870676677,3.57131585,141.51,141.47,0.66]
[1764870676892,3.57131585,141.51,141.47,7.72827395]
[1764870677588,7.06613906,141.52,141.48,0.66]
[1764870677781,10.73131585,141.53,141.48,3.57131585]
[1764870677994,10.73131585,141.53,141.49,2.91131585]
[1764870678190,10.73131585,141.53,141.49,3.57131585]
[1764870678381,22.4728383,141.53,141.49,0.66]
[1764870678581,6.92719557,141.52,141.49,0.66]
[1764870678879,6.92719557,141.52,141.49,7.7273057]
[1764870679087,15.54564273,141.53,141.49,7.7273057]
[1764870679287,15.40719557,141.53,141.49,7.7273057]
[1764870679493,15.40719557,141.53,141.49,7.06761066]
[1764870679494,6.92719557,141.51,141.49,7.06761066]
[1764870679996,7.58719557,141.52,141.49,7.06761066]
[1764870680180,6.92719557,141.53,141.5,0.66]
[1764870680609,6.92719557,141.53,141.49,7.06761066]
[1764870680610,14.65296707,141.53,141.49,7.06761066]
[1764870680776,7.58719557,141.52,141.48,7.0679536]
[1764870680972,7.58719557,141.52,141.49,7.06763225]
[1764870681598,7.58719557,141.52,141.48,7.72804649]
[1764870681777,6.92719557,141.51,141.48,7.72804649]
[1764870682903,7.58719557,141.5,141.47,7.06863646]
[1764870683502,0.66,141.49,141.46,7.06898584]
[1764870683689,17.66474458,141.53,141.48,7.58719557]
[1764870683690,7.06583951,141.53,141.48,7.58719557]
[1764870683892,13.99303508,141.53,141.48,7.58719557]
[1764870684090,14.65303508,141.53,141.49,0.66]
[1764870684289,7.58719557,141.53,141.49,0.66]
[1764870684488,7.82,141.54,141.5,6.92719557]
[1764870684692,110.28719557,141.55,141.5,6.92719557]
[1764870684983,6.92719558,141.56,141.51,14.65335887]
[1764870685185,6.92719558,141.56,141.52,6.92719557]
[1764870685186,1e-08,141.56,141.52,6.92719557]
[1764870685504,1e-08,141.56,141.53,6.92719557]
[1764870685797,1e-08,141.56,141.54,6.92719557]
[1764870685986,1e-08,141.56,141.54,7.58719557]
[1764870686191,1e-08,141.56,141.55,0.66]
[1764870686378,1e-08,141.56,141.54,6.92719557]
[1764870686575,1e-08,141.56,141.55,7.58719557]
[1764870686781,1e-08,141.56,141.55,16.39714049]
[1764870687094,1e-08,141.56,141.55,23.46178195]
[1764870688601,1e-08,141.56,141.55,39.77064595]
[1764870689521,1e-08,141.56,141.55,23.46178195]
[1764870690294,0.2,141.61,141.59,25.11880892]
[1764870690493,0.2,141.61,141.6,6.92719557]
[1764870690695,0.2,141.61,141.6,0.66]
[1764870690988,0.2,141.61,141.6,14.64934246]
[1764870691509,0.2,141.61,141.6,39.76815138]
[1764870692288,0.2,141.61,141.6,46.69534695]
[1764870692691,0.2,141.62,141.61,25.11880892]
[1764870692898,1e-08,141.63,141.62,25.11880892]
[1764870693116,1e-08,141.63,141.62,47.60715404]
[1764870693323,1e-08,141.64,141.63,9.46994492]
[1764870693609,1e-08,141.64,141.63,16.39714049]
[1764870693813,1e-08,141.65,141.64,9.46994492]
[1764870694001,1e-08,141.65,141.64,16.39714049]
[1764870694402,0.2,141.71,141.67,25.11880892]
[1764870694707,8.2,141.75,141.7,6.92719557]
[1764870695007,8.2,141.75,141.71,6.92719557]
[1764870695224,17.632182,141.79,141.71,7.05665001]
[1764870695511,6.92719557,141.79,141.74,6.92719557]
[1764870695691,7.58719557,141.79,141.74,6.92719557]
[1764870695885,7.58719557,141.78,141.72,9.46994492]
[1764870696112,7.58719557,141.78,141.73,6.92719557]
[1764870696308,7.58719557,141.78,141.72,9.46994492]
[1764870696309,0.66,141.78,141.74,6.92719557]
[1764870696510,7.58719557,141.81,141.76,8.80994492]
[1764870696807,0.66,141.81,141.77,6.92719557]
[1764870697196,0.66,141.83,141.78,7.58719557]
[1764870697402,6.92719557,141.82,141.77,39.45507029]
[1764870697584,6.92719557,141.81,141.77,14.89367849]
[1764870697790,6.92719557,141.81,141.76,30.63120051]
[1764870698107,14.63808187,141.83,141.78,6.92719557]
[1764870698311,7.58719557,141.83,141.78,6.92719557]
[1764870698519,7.58719557,141.83,141.78,7.58719557]
[1764870698710,6.92719557,141.82,141.77,15.73714049]
[1764870698891,6.92719557,141.8,141.75,38.13057732]
[1764870699097,6.92719557,141.8,141.76,7.05411256]
[1764870699294,0.66,141.81,141.76,13.98130813]
[1764870699295,13.97932772,141.81,141.76,13.98130813]
[1764870699509,7.58719557,141.81,141.76,14.64130813]
[1764870699694,0.66,141.8,141.76,13.98130813]
[1764870700098,0.66,141.8,141.75,38.13061342]
[1764870700099,6.92719557,141.79,141.75,38.13061342]
[1764870700291,0.66,141.79,141.75,31.18341785]
[1764870700505,7.58719557,141.78,141.75,7.82]
[1764870700702,6.92719557,141.79,141.75,14.87464812]
[1764870701016,6.92719557,141.79,141.74,15.73714049]
[1764870701017,6.92719557,141.78,141.74,7.05516244]
[1764870701397,7.71223422,141.8,141.74,14.64235801]
[1764870701594,6.92719557,141.79,141.74,14.64235801]
[1764870701789,7.71223422,141.8,141.75,15.73714049]
[1764870701790,7.58719557,141.8,141.75,15.73714049]
[1764870702004,7.58719557,141.83,141.78,6.92719557]
[1764870702200,0.69,141.82,141.76,14.74719557]
[1764870702398,6.92719557,141.81,141.76,7.82]
[1764870702611,6.92719557,141.81,141.76,14.74719557]
[1764870702809,6.92719557,141.81,141.76,8.5]
[1764870703009,6.92719557,141.82,141.77,7.60719557]
[1764870703206,6.92719557,141.82,141.78,6.92719557]
[1764870703397,6.92719557,141.82,141.79,7.05268354]
[1764870703593,23.90605957,141.83,141.79,7.05268354]
[1764870704317,7.59719557,141.82,141.78,7.05301413]
[1764870704912,7.59719557,141.82,141.78,13.9802097]
[1764870705316,7.59719557,141.82,141.77,17.63347876]
[1764870705317,7.59719557,141.82,141.77,24.68715725]
[1764870705501,13.97843279,141.82,141.77,31.61435282]
[1764870705697,0.67,141.81,141.77,31.61435282]
[1764870705897,6.92719557,141.8,141.75,16.988864]
[1764870706102,6.92719557,141.79,141.75,31.05605957]
[1764870706614,6.92719557,141.79,141.75,31.73605957]
[1764870706814,6.92719557,141.8,141.75,31.73605957]
[1764870707007,6.92719557,141.8,141.76,13.98114334]
[1764870707206,7.59719557,141.81,141.76,14.66114334]
[1764870707600,0.67,141.81,141.76,14.66114334]
[1764870707803,6.92719557,141.81,141.77,0.68]
[1764870708030,6.92719557,141.82,141.77,6.92719557]
[1764870708229,6.92719557,141.82,141.77,16.41714049]
[1764870708700,0.67,141.82,141.77,16.41714049]
[1764870708899,7.59719557,141.82,141.77,16.41714049]
[1764870709211,7.59719557,141.82,141.78,7.05318098]
[1764870709718,0.67,141.82,141.78,7.05318098]
[1764870709913,7.59719557,141.82,141.78,7.05318098]
[1764870711198,24.148864,141.86,141.79,0.68]
[1764870711199,0.67,141.85,141.79,0.68]
[1764870711401,6.92719557,141.84,141.79,7.60719557]
[1764870711719,6.92719557,141.84,141.8,6.92719557]
[1764870711897,7.59719557,141.84,141.8,6.92719557]
[1764870712307,14.88940035,141.86,141.81,0.68]
[1764870712522,7.04850881,141.88,141.81,17.30994492]
[1764870712725,6.92719557,141.87,141.83,6.92719557]
[1764870713223,0.67,141.87,141.82,13.97838722]
[1764870713407,7.04850881,141.88,141.83,6.92719557]
[1764870713725,13.97570438,141.88,141.83,7.60719557]
[1764870713926,0.67,141.87,141.83,7.60719557]
[1764870714309,0.67,141.87,141.82,7.05119165]
[1764870714310,6.92719557,141.85,141.82,7.05119165]
[1764870714708,7.59719557,141.84,141.8,23.36088256]
[1764870715217,0.67,141.83,141.8,24.04088256]
[1764870715420,6.92719557,141.84,141.8,24.04088256]
[1764870715421,13.97749611,141.84,141.8,24.04088256]
[1764870715729,7.59719557,141.84,141.8,24.04088256]
[1764870715936,0.67,141.84,141.8,30.96807813]
[1764870716102,7.59719557,141.84,141.8,30.96807813]
[1764870716536,14.64743916,141.84,141.8,24.04088256]
[1764870716725,7.59719557,141.84,141.8,24.04088256]
[1764870717027,7.82,141.9,141.81,9.48994492]
[1764870717028,17.61984587,141.89,141.81,9.48994492]
[1764870717229,7.04911212,141.87,141.82,7.05119165]
[1764870717432,7.71837926,141.88,141.82,14.65838722]
[1764870717603,0.67,141.88,141.83,7.60719557]
[1764870717805,0.67,141.87,141.82,7.05119165]
[1764870718007,6.92719557,141.86,141.82,7.05119165]
[1764870718235,6.92719557,141.86,141.82,7.73119165]
[1764870718443,7.59719557,141.86,141.82,7.73119165]
[1764870718741,7.59719557,141.85,141.81,7.05157312]
[1764870719106,6.92719557,141.83,141.8,16.308864]
[1764870719433,6.92719557,141.86,141.82,6.92719557]
[1764870719612,16.978864,141.87,141.8,40.99146126]
[1764870719613,6.92719557,141.84,141.8,40.99146126]
[1764870719814,0.67,141.86,141.8,23.36099582]
[1764870720021,6.92719557,141.83,141.8,23.36099582]
[1764870720409,0.67,141.88,141.82,6.92719557]
[1764870720609,7.71729106,141.9,141.85,23.23605957]
[1764870720808,0.67,141.89,141.85,23.23605957]
[1764870721314,0.87,141.91,141.87,13.97590213]
[1764870721527,7.79719557,141.91,141.87,13.97590213]
[1764870721832,7.79719557,141.91,141.87,7.72870656]